Cogmind - Beta 11.2 @@@ ROGUE MODE // 2023.01.22 @ 10:53:01 Player: Chris Result: Destroyed by G-34 Mercenary with Small Laser Performance ------------- Evolutions (0) 0 Regions Visited (1) 200 Robots Destroyed (14) 70 Value Destroyed (357) 357 Prototype IDs (1) 20 Alien Tech Used (0) 0 Bonus (0) 0 TOTAL SCORE: 647 Bonus ------- None Cogmind --------- Core Integrity 0/250 Matter 226/300 Energy 100/100 System Corruption 4% Temperature Cool (6) Movement Rolling (80) Location -10/Materials Parts ------- > --- POWER (1) -------- (None) > --- PROPULSION (2) --- Wheel > --- UTILITY (2) ------ Improved Targeting Computer > --- WEAPON (2) ------- Improved Assault Rifle Improved Assault Rifle > --- INVENTORY (5) ---- Light Treads Medium Laser Heavy Hammer Peak State ------------ > --- POWER ------------ Light Ion Engine > --- PROPULSION ------- Wheel Wheel > --- UTILITY ---------- Improved Targeting Computer Improved Targeting Computer > --- WEAPON ----------- Improved Assault Rifle Improved Assault Rifle > --- INVENTORY -------- Light Treads Medium Laser Heavy Hammer [Rating: 13] Favorites ----------- Power Light Ion Engine Engine Light Ion Engine Propulsion Aluminum Leg Treads Light Treads Leg Aluminum Leg Wheel Wheel Utility Improved Targeting Computer Processor Improved Targeting Computer Weapon Medium Laser Energy Gun Medium Laser Ballistic Gun Improved Assault Rifle Impact Weapon Heavy Hammer Build | -11 -10 ------- Run | Scr Mat Slots Evolved . | . . Power . | . . Propulsion . | . . Utility . | . . Weapon . | . . Parts Attached 19 | 6 13 Power 5 | 1 4 Engine 5 | 1 4 Core . | . . Reactor . | . . Propulsion 6 | 3 3 Treads 1 | 1 . Leg 3 | 2 1 Wheel 2 | . 2 Hover . | . . Flight . | . . Utility 2 | . 2 Device . | . . Storage . | . . Processor 2 | . 2 Hackware . | . . Protection . | . . Artifact . | . . Weapon 6 | 2 4 Energy Gun 2 | 2 . Energy Cannon . | . . Ballistic Gun 2 | . 2 Ballistic Cannon . | . . Launcher . | . . Special Weapon . | . . Impact Weapon 2 | . 2 Slashing Weapon . | . . Piercing Weapon . | . . Special Melee Weapon . | . . Unidentified Prototypes 1 | . 1 Corrupted Parts 1 | . 1 System Corruption 2 | . 2 Parts Lost 9 | . 9 Power 3 | . 3 Propulsion 4 | . 4 Utility 1 | . 1 Weapon 1 | . 1 Highest Loss Streak 4 | . 4 To Critical Strikes . | . . Average Slot Usage (%) 90 | . 90 Engine 12 | . 12 Leg 21 | . 21 Wheel 2 | . 2 Processor 26 | . 26 Energy Gun 12 | . 12 Ballistic Gun 1 | . 1 Impact Weapon 10 | . 10 Naked Turns . | . . Heaviest Build 9 | 7 9 Greatest Support 20 | 20 20 Greatest Overweight (x) 1 | . 1 Average Overweight (x) . | . . Largest Inventory Capacity 5 | 5 5 Average Capacity 5 | 5 5 Most Carried 4 | 2 4 Average Carried 2 | 1 3 Final Capacity 5 | 5 5 Final Carried 3 | 2 3 Class Distribution -------------------- 100% | Mutant Dominant Class ---------------- Mutant | -10/Materials Resources | -11 -10 ----------- Run | Scr Mat Matter Collected 340 | 187 153 Remotely . | . . Salvage Created 396 | . 396 Parts 17 | . 17 Haulers Intercepted . | . . Recyclers Shooed . | . . Parts Field Recycled . | . . Retrieved Matter . | . . Parts Self-Destructed . | . . Prevented . | . . Kills | -11 -10 ------- Run | Scr Mat Combat Hostiles Destroyed 12 | . 12 Melee 4 | . 4 Guns 3 | . 3 Classes Destroyed 4 | . 4 Worker 1 | . 1 Tunneler 1 | . 1 Swarmer 3 | . 3 Grunt 9 | . 9 Best Kill Streak 3 | . 3 Combat Bots Only 3 | . 3 Max Kills in Single Turn 1 | . 1 Gunslinging . | . . Exploded . | . . Melee 1 | . 1 Uniques/NPCs Destroyed . | . . Combat | -11 -10 -------- Run | Scr Mat Damage Taken 994 | . 994 Core 252 | . 252 Absorbed by Shields . | . . Core Remaining (%) 100 | 100 . Volleys Fired 15 | . 15 Largest 2 | . 2 Hottest 100 | . 100 Shots Fired 29 | . 29 Gun 29 | . 29 Cannon . | . . Launcher . | . . Special . | . . Kinetic 14 | . 14 Thermal 15 | . 15 Explosive . | . . Electromagnetic . | . . Robot Hit Streak 12 | . 12 Robot Miss Streak 4 | . 4 Penetration Max . | . . Secondary Targets . | . . Shots Hit Robots 53 | . 53 Core Hits 11 | . 11 Critical Kills 1 | . 1 Critical Parts Destroyed 5 | . 5 Critical Strikes 6 | . 6 Destroy 1 | . 1 Smash 5 | . 5 Melee Attacks 44 | . 44 Impact 44 | . 44 Slashing . | . . Piercing . | . . Sneak Attacks 3 | . 3 Combat Hostiles . | . . Follow-up Attacks . | . . Damage Inflicted 1591 | . 1591 Guns 288 | . 288 Cannons . | . . Explosions . | . . Melee 1303 | . 1303 Ramming . | . . Kinetic 189 | . 189 Thermal 99 | . 99 Explosive . | . . Electromagnetic . | . . Impact 1303 | . 1303 Slashing . | . . Piercing . | . . Highest Corruption 4 | . 4 Average Corruption 2 | . 2 Corruption Purged . | . . Corruption Blocked . | . . Effects 3 | . 3 Matter Fused 1 | . 1 Data Loss (minor) 2 | . 2 Overload Shots . | . . Overflow Damage 249 | . 249 Projectiles . | . . Explosions . | . . Melee 249 | . 249 Knockbacks 5 | . 5 Impact 4 | . 4 Kinetic . | . . Secondary 1 | . 1 Self-Inflicted Damage . | . . Shots . | . . Rammed . | . . Targets Rammed . | . . Kicked . | . . Crushed . | . . Highest Temperature 195 | . 195 Average Temperature 58 | . 58 Received Heat Transfer 483 | . 483 Siege Activations . | . . Robots Corrupted . | . . Combat Hostiles . | . . Parts Fried 5 | . 5 Impact Corruptions 13 | . 13 Robots Melted . | . . Combat Hostiles . | . . Parts Melted . | . . Heat Transferred 296 | . 296 Parts Sabotaged . | . . Parts Stolen . | . . Parts Stripped . | . . Power Chain Reactions . | . . Missiles Intercepted . | . . Alert | -11 -10 ------- Run | Scr Mat Peak Influence 227 | . 227 Initial . | . . Average 98 | . 108 Maximum Alert Level 1 | . 1 Low Security (%) 83 | 100 81 Level 1 16 | . 18 Level 2 . | . . Level 3 . | . . Level 4 . | . . Level 5 . | . . High Security . | . . Max Security . | . . Squads Dispatched 3 | . 3 Investigation 2 | . 2 Extermination . | . . Reinforcement 1 | . 1 Assault . | . . Garrison . | . . Intercept . | . . Searches Triggered . | . . Construction Impeded . | . . Haulers Reinforced . | . . Active Scanning Responses . | . . Cargo Convoy Interrupts . | . . Stealth | -11 -10 --------- Run | Scr Mat Distress Signals 1 | . 1 Communications Jammed . | . . Distress Signals . | . . Times Spotted 24 | . 24 Peak Tracking Total 4 | . 4 Tactical Retreats 2 | . 2 Traps | -11 -10 ------- Run | Scr Mat Traps Triggered 3 | . 3 Indirectly . | . . Trap Hack Attempts . | . . Triggered . | . . Disarmed . | . . Reprogrammed . | . . Reused . | . . Traps Extracted . | . . Installed . | . . Triggered . | . . Machines | -11 -10 ---------- Run | Scr Mat Machines Disabled . | . . Max in Single Turn . | . . Machines Sabotaged . | . . Garrisons Compromised . | . . Overloaded Fab Kills . | . . Hacking | -11 -10 --------- Run | Scr Mat Machines Accessed 2 | . 2 Terminals 2 | . 2 Fabricators . | . . Repair Stations . | . . Recycling Units . | . . Scanalyzers . | . . Garrison Access . | . . Total Hacks 3 | . 3 Successful 1 | . 1 Failed 2 | . 2 Catastrophic 1 | . 1 Database Lockouts . | . . Manual . | . . Terminals 3 | . 3 Fabricators . | . . Repair Stations . | . . Recycling Units . | . . Scanalyzers . | . . Garrison Access . | . . Terminal Hacks 1 | . 1 Record 1 | . 1 Fabricator Hacks . | . . Repair Station Hacks . | . . Recycling Unit Hacks . | . . Scanalyzer . | . . Garrison Access Hacks . | . . Unauthorized Hacks . | . . Terminals . | . . Fabricators . | . . Repair Stations . | . . Recycling Units . | . . Scanalyzers . | . . Garrison Access . | . . Data Cores Recovered . | . . Used . | . . Hacking Detections . | . . Full Trace Events . | . . Feedback Events . | . . Feedback Blocked . | . . Robot Schematics Acquired . | . . Robots Built . | . . Authchips . | . . Time . | . . Total Robot Build Rating . | . . Part Schematics Acquired . | . . Parts Built . | . . Authchips . | . . Time . | . . Total Part Build Rating . | . . Parts Repaired . | . . Time . | . . Parts Recycled . | . . Recycled Matter . | . . Retrieved Matter . | . . Retrieved Components . | . . Parts Scanalyzed . | . . Part Schematics Acquired . | . . Parts Damaged . | . . Bothacking | -11 -10 ------------ Run | Scr Mat Used RIF Installer . | . . Robots Hacked . | . . Non-combat . | . . Combat . | . . Robot Hacks Applied . | . . Relay Couplers Released . | . . Fabnet Peak Effective % . | . . Robots Rewired . | . . Allies Hacked . | . . Hacks Repelled . | . . Allies | -11 -10 -------- Run | Scr Mat Total Allies . | . . Largest Group . | . . Highest-Rated Group . | . . Highest-Rated Ally . | . . Total Orders . | . . Ally Attacks . | . . Total Damage . | . . Kills . | . . Allies Corrupted . | . . Allies Melted . | . . Intel | -11 -10 ------- Run | Scr Mat Robot Analysis Total . | . . Derelict Logs Recovered . | . . Drone Launches . | . . Drone Recoveries . | . . Exploration | -11 -10 ------------- Run | Scr Mat Turns Passed 871 | 74 797 Spaces Moved 561 | 58 503 Core 54 | 9 45 Treads 2 | 2 . Legs 454 | 47 407 Wheels 51 | . 51 Hover . | . . Flight . | . . Fastest Speed 50 | 50 50 Average Speed 113 | 110 113 Slowest Speed 160 | 160 120 Overloaded Moves . | . . Propulsion Burnouts . | . . Robots Hopped . | . . Cave-ins Triggered . | . . Exploration Rate (%) 37 | 4 70 Regions Visited 1 Branch Regions . Pre-discovered Areas . | . . Known Exits Taken . | . . Unknown Exits Taken 1 | 1 . Scrap Searched . | . . Spaces Dug . | . . Terrain Destroyed . | . . Melee . | . . Projectile . | . . AOE . | . . Terrain Rammed . | . . Walls Destroyed . | . . Machines Disabled . | . . Actions | -11 -10 --------- Run | Scr Mat Total 686 | 65 621 Wait 43 | . 43 Move 560 | 57 503 Hop . | . . Pick Up 2 | 1 1 Fast Attach 15 | 6 9 Attach 3 | . 3 Detach 3 | 1 2 Swap 1 | . 1 Drop . | . . Fire 15 | . 15 Melee 44 | . 44 Ram . | . . Kick . | . . Crush . | . . Escape Stasis . | . . Rewire . | . . Trap . | . . Miscellaneous . | . . Route ------- -11/Scrapyard -10/Materials (discovered 3 exits: [*Mat x2] / [*Min]) History --------- Turn | Location | Event 7 | -11/Scrapyard | Discovered new exit (range 15) 75 | -11/Scrapyard | Entered Materials 303 | -10/Materials | Build established: Mutant 403 | -10/Materials | Discovered new exit (range 12) 489 | -10/Materials | Discovered new exit (range 7) 662 | -10/Materials | Discovered new exit (range 4) 674 | -10/Materials | Core integrity fell below 50% 706 | -10/Materials | Lost 4 parts (1p2n1w) 866 | -10/Materials | Core integrity fell below 20% 872 | -10/Materials | Destroyed by G-34 Mercenary with Small Laser Last Messages --------------- 00769_ G-34 Mercenary system terminally corrupted. 00771_ Acquired 1 matter. 00786_ K-01 Serf collects debris. 00796_ Sneak attack on K-01 Serf. 00796_ K-01 Serf destroyed. 00798_ K-01 Serf cleans the Terminal. 00801_ Acquired Wheel. 00802_ K-01 Serf collects debris. 00804_ Acquired Wheel. 00805_ K-01 Serf collects debris. 00814_ System corrupted: Matter fused (-7). 00828_ Acquired Prototype Ballistic Gun. 00828_ Identified Imp. Assault Rifle. 00831_ Acquired Imp. Assault Rifle. 00851_ Critical hit (Burn: +37). 00855_ G-47 Trooper suffers critical hit (Destroy). 00855_ Destroyed Aluminum Leg. 00857_ Imp. Targeting Computer destroyed. 00868_ Lgt. Ion Engine destroyed. 00870_ Wheel destroyed. Map ----- +----------------------------------------------------+ | | | | | | | | | | | | | | | | | | | | | | | | | ?????????????????????????????????????????????????? | | ?????????????????????????????????????????????????? | | ?????????????????????????????????????????????????? | | ?????????????????????????????????????????????????? | | ??????????????????######?????????????????????????? | | ??????????????????# = ?????????????????????????? | | ??????????????????# #??########??????????????? | | ??????????????????+ #??#[[[ !!#??????????????? | | ??????????????????# #??#[[[ !!#??##########??? | | ??????????????????# #??# #??# #??? | | ??????????????????# """ #??## #### #### | | ??????????????????# """ #???# + # | | ??????????????????# """ ##### ###### # | | ??????????????????# """ g@ g #????# # "" | | ??????????????????# """ ##### #????# # "" | | ??????????????????# #???# #????# # "" | | ??????????????????# #???# #????# # | | ??????????????????###/###???# #????# # | | ???????????????????? ?????? #????######/### | | ??????????????????? ????? ######### ###+ | | ?????????????????? ????? T" | | ????????????????? ###?????####+########## " | | ????????????????##??????????????????????# % | | ????????????????????????????????????????# #### | | ??????????????????????????????????######## ####??? | | ??????????????????????????????????# ###+##????? | | ??????????????????????????????????# # #????? | | ??????????????????????????????????# # #????? | | ??????????????????????????????????# # #????? | | ????????????#####+####+#??????????# # ###### | | ????????? ########### # % # | | ???????????????# + #!!! # | | ???????????????# ########### ! #!! + | | ???????????????# ?########?# #!! # ## | | ???????????????# ## ##+######### #? | | ????????????? #? | | ??????????? < + | | ??????????? """ """ [ # | +----------------------------------------------------+ Best States ------------- Heat Dissipation 25 Energy Generation 10 Energy Capacity 125 Matter Stores 300 Matter Capacity 300 Sight Range 16 Terrain Scan Density 10 Evasion (%) 55 Targeting Accuracy 12 Item Schematics ----------------- None Robot Schematics ------------------ None Fabricated ------------ Nothing Alien Tech Used ----------------- None Achievements -------------- None Challenges ------------ None Game ------ Seed PropulsionOpticalStick Manual? 0 Play Time 00:07:52 Cumulative 13.3 hours Start 2023.01.22 @ 10:45:30 End 2023.01.22 @ 10:53:01 Sessions 1 Manual Loads 0 Difficulty Rogue Special Mode None Game No. 46 Rogue 46 Adventurer 0 Explorer 0 Win Type - Total 0 Types 0/0/0/0/0/0/0/0/0 Lore% 5 Gallery% 17 Achievement% 15 Wizard Run 0 Options --------- ASCII 0 Keyboard 1 Movement Vi Keybinds 0 Fullscreen 1 Font 24/Smallcaps Map View 76x50 Tactical HUD 1 Map Filters NONE Filters NONE Steam 1 RUN: 73365252-c86e-4b3a-a5a4-a8bc67832037